[Event "*** Titled Tuesday Blitz"]
[Site "Chess.com"]
[Date "2020.11.10"]
[Round "1"]
[White "eljanov"]
[Black "aridannie"]
[Result "1-0"]
[WhiteElo "2825"]
[BlackElo "2406"]
[TimeControl "180+1"]
[EndTime "10:06:38 PST"]
[Termination "eljanov won by resignation"]

1. e4 {[%clk 0:02:56.2]} 1... c5 {[%clk 0:03:00]} 2. Nf3 {[%clk 0:02:54.6]} 2...
Nc6 {[%clk 0:03:00.3]} 3. Bb5 {[%clk 0:02:53.7]} 3... g6 {[%clk 0:02:59.8]} 4.
Bxc6 {[%clk 0:02:53]} 4... dxc6 {[%clk 0:03:00.5]} 5. d3 {[%clk 0:02:52.4]} 5...
Bg7 {[%clk 0:03:00]} 6. Nc3 {[%clk 0:02:51.1]} 6... e5 {[%clk 0:02:58.5]} 7. Be3
{[%clk 0:02:49.2]} 7... b6 {[%clk 0:02:57.8]} 8. Qd2 {[%clk 0:02:41.3]} 8... Qc7
{[%clk 0:02:57.1]} 9. O-O {[%clk 0:02:35.3]} 9... Nf6 {[%clk 0:02:49.8]} 10. Bh6
{[%clk 0:02:28.6]} 10... O-O {[%clk 0:02:48.1]} 11. Bxg7 {[%clk 0:02:24.2]}
11... Kxg7 {[%clk 0:02:49]} 12. h3 {[%clk 0:02:14.9]} 12... h6 {[%clk 0:02:43]}
13. Ne2 {[%clk 0:02:02.3]} 13... Be6 {[%clk 0:02:38.9]} 14. b3 {[%clk
0:01:57.5]} 14... Kh7 {[%clk 0:02:25.5]} 15. Nh2 {[%clk 0:01:51.8]} 15... Nh5
{[%clk 0:02:21.4]} 16. f4 {[%clk 0:01:41.5]} 16... exf4 {[%clk 0:02:16.6]} 17.
Nxf4 {[%clk 0:01:40.1]} 17... Nxf4 {[%clk 0:02:07]} 18. Rxf4 {[%clk 0:01:39]}
18... Qe5 {[%clk 0:01:59.5]} 19. Raf1 {[%clk 0:01:35.9]} 19... Kg7 {[%clk
0:01:11.8]} 20. Nf3 {[%clk 0:01:15.8]} 20... Qb2 {[%clk 0:01:10.8]} 21. e5
{[%clk 0:01:01.8]} 21... Rad8 {[%clk 0:01:03]} 22. Rf2 {[%clk 0:00:54.1]} 22...
Bd5 {[%clk 0:00:53.6]} 23. Rh4 {[%clk 0:00:49.1]} 23... h5 {[%clk 0:00:49.5]}
24. Rxh5 {[%clk 0:00:29]} 24... Rh8 {[%clk 0:00:41.4]} 25. Rxh8 {[%clk
0:00:25.5]} 25... Rxh8 {[%clk 0:00:42.3]} 26. Qf4 {[%clk 0:00:24.7]} 26... Re8
{[%clk 0:00:28.3]} 27. Qf6+ {[%clk 0:00:20.9]} 27... Kg8 {[%clk 0:00:26.1]} 28.
c4 {[%clk 0:00:17]} 28... Bxf3 {[%clk 0:00:23.7]} 29. Rxb2 {[%clk 0:00:15.9]}
1-0

[Event "*** Titled Tuesday Blitz"]
[Site "Chess.com"]
[Date "2020.11.10"]
[Round "1"]
[White "Klavdia_Nik"]
[Black "biostatistician"]
[Result "0-1"]
[WhiteElo "2120"]
[BlackElo "2520"]
[TimeControl "180+1"]
[EndTime "10:06:38 PST"]
[Termination "biostatistician won by resignation"]

1. Nf3 {[%clk 0:02:43.1]} 1... Nf6 {[%clk 0:02:58.6]} 2. c4 {[%clk 0:02:40.8]}
2... g6 {[%clk 0:02:58]} 3. b3 {[%clk 0:02:40.6]} 3... Bg7 {[%clk 0:02:58.9]} 4.
Bb2 {[%clk 0:02:40.8]} 4... b6 {[%clk 0:02:58.7]} 5. g3 {[%clk 0:02:40.2]} 5...
Bb7 {[%clk 0:02:59.3]} 6. Bg2 {[%clk 0:02:40.9]} 6... O-O {[%clk 0:03:00]} 7.
O-O {[%clk 0:02:41.2]} 7... d6 {[%clk 0:03:00.5]} 8. d4 {[%clk 0:02:41]} 8...
Nbd7 {[%clk 0:03:00.6]} 9. d5 {[%clk 0:02:41]} 9... c6 {[%clk 0:02:56.4]} 10.
dxc6 {[%clk 0:02:35.8]} 10... Bxc6 {[%clk 0:02:57.3]} 11. Nc3 {[%clk 0:02:36.3]}
11... Qc8 {[%clk 0:02:53.6]} 12. Rc1 {[%clk 0:02:31.6]} 12... Qb7 {[%clk
0:02:53.2]} 13. Qd2 {[%clk 0:02:25.3]} 13... Rac8 {[%clk 0:02:52]} 14. Rfd1
{[%clk 0:02:24.7]} 14... Ne4 {[%clk 0:02:41.9]} 15. Nxe4 {[%clk 0:02:23.5]}
15... Bxe4 {[%clk 0:02:42.8]} 16. Bxg7 {[%clk 0:02:22.4]} 16... Kxg7 {[%clk
0:02:43.7]} 17. Qd4+ {[%clk 0:02:12.7]} 17... Nf6 {[%clk 0:02:43.6]} 18. h4
{[%clk 0:01:46.8]} 18... Rc5 {[%clk 0:02:39.2]} 19. Qb2 {[%clk 0:01:39.3]} 19...
Rfc8 {[%clk 0:02:35.9]} 20. h5 {[%clk 0:01:25.1]} 20... Rxh5 {[%clk 0:02:32.8]}
21. g4 {[%clk 0:01:02.3]} 21... Rhc5 {[%clk 0:02:17.8]} 22. Nh4 {[%clk
0:00:38.6]} 22... Bxg2 {[%clk 0:02:14.4]} 23. Nxg2 {[%clk 0:00:39.1]} 23... Kg8
{[%clk 0:02:13.1]} 24. Ne3 {[%clk 0:00:32.6]} 24... h5 {[%clk 0:02:01.3]} 25.
gxh5 {[%clk 0:00:25]} 25... Rxh5 {[%clk 0:02:02.2]} 26. Ng2 {[%clk 0:00:22.6]}
26... Rcc5 {[%clk 0:01:55.3]} 27. Rd3 {[%clk 0:00:12.4]} 27... Rcg5 {[%clk
0:01:54.1]} 28. Rg3 {[%clk 0:00:12.8]} 28... Rxg3 {[%clk 0:01:33.6]} 29. fxg3
{[%clk 0:00:12.1]} 29... Ne4 {[%clk 0:01:34.2]} 30. Qd4 {[%clk 0:00:08.7]} 30...
Nxg3 {[%clk 0:01:29.6]} 31. Kf2 {[%clk 0:00:05.5]} 31... Rf5+ {[%clk 0:01:15.7]}
32. Kxg3 {[%clk 0:00:04.2]} 32... Rg5+ {[%clk 0:01:15.9]} 33. Kf2 {[%clk
0:00:04.3]} 33... Qxg2+ {[%clk 0:01:09.2]} 34. Ke3 {[%clk 0:00:04.8]} 34... Re5+
{[%clk 0:01:03.9]} 35. Kd3 {[%clk 0:00:01.6]} 35... Qxe2+ {[%clk 0:01:03.2]} 36.
Kc3 {[%clk 0:00:02.1]} 0-1

[Event "*** Titled Tuesday Blitz"]
[Site "Chess.com"]
[Date "2020.11.10"]
[Round "1"]
[White "PaulfromSPb"]
[Black "Kotofeyca"]
[Result "1-0"]
[WhiteElo "2707"]
[BlackElo "2362"]
[TimeControl "180+1"]
[EndTime "10:06:41 PST"]
[Termination "PaulfromSPb won by resignation"]

1. d4 {[%clk 0:02:58]} 1... d5 {[%clk 0:02:59.6]} 2. Bf4 {[%clk 0:02:49]} 2...
c6 {[%clk 0:02:59.2]} 3. e3 {[%clk 0:02:49]} 3... Bf5 {[%clk 0:02:59]} 4. Bd3
{[%clk 0:02:48]} 4... Bxd3 {[%clk 0:02:58]} 5. Qxd3 {[%clk 0:02:47.2]} 5... e6
{[%clk 0:02:58.6]} 6. Nd2 {[%clk 0:02:47.2]} 6... Bd6 {[%clk 0:02:58.6]} 7. Bg3
{[%clk 0:02:47.1]} 7... Nf6 {[%clk 0:02:57.9]} 8. f4 {[%clk 0:02:45]} 8... O-O
{[%clk 0:02:54.8]} 9. Ngf3 {[%clk 0:02:45]} 9... c5 {[%clk 0:02:55]} 10. c3
{[%clk 0:02:44.7]} 10... Nc6 {[%clk 0:02:54.8]} 11. O-O {[%clk 0:02:44]} 11...
a6 {[%clk 0:02:51.9]} 12. Ne5 {[%clk 0:02:42]} 12... Rc8 {[%clk 0:02:48.7]} 13.
Rae1 {[%clk 0:02:39.6]} 13... b5 {[%clk 0:02:46.2]} 14. Bh4 {[%clk 0:02:38.8]}
14... Be7 {[%clk 0:02:44.8]} 15. f5 {[%clk 0:02:37.8]} 15... Nd7 {[%clk
0:02:17.3]} 16. Nxc6 {[%clk 0:02:28.5]} 16... Rxc6 {[%clk 0:02:15.7]} 17. Bg3
{[%clk 0:02:28.6]} 17... Nf6 {[%clk 0:02:07.2]} 18. h3 {[%clk 0:02:21.8]} 18...
c4 {[%clk 0:01:59.5]} 19. Qe2 {[%clk 0:02:19.4]} 19... b4 {[%clk 0:01:59.9]} 20.
e4 {[%clk 0:02:13.8]} 20... bxc3 {[%clk 0:01:59.3]} 21. bxc3 {[%clk 0:02:14.7]}
21... exf5 {[%clk 0:01:40.3]} 22. Rxf5 {[%clk 0:02:13]} 22... Nxe4 {[%clk
0:01:15.9]} 23. Nxe4 {[%clk 0:02:12.7]} 23... dxe4 {[%clk 0:01:16.8]} 24. Qxe4
{[%clk 0:02:12.8]} 24... Re6 {[%clk 0:01:12.2]} 25. Re5 {[%clk 0:02:09.5]} 25...
Rxe5 {[%clk 0:01:09.8]} 26. Bxe5 {[%clk 0:02:09.5]} 26... Ba3 {[%clk 0:00:59.8]}
27. Qc6 {[%clk 0:02:04]} 27... Qc8 {[%clk 0:00:53.5]} 28. Qa4 {[%clk 0:02:02]}
28... Bb2 {[%clk 0:00:44.8]} 29. Qc2 {[%clk 0:01:59.1]} 29... Ba3 {[%clk
0:00:43.2]} 30. Rb1 {[%clk 0:02:00]} 30... Qc6 {[%clk 0:00:39.5]} 31. Bg3 {[%clk
0:01:48.1]} 31... Re8 {[%clk 0:00:37.6]} 32. Rd1 {[%clk 0:01:43.6]} 32... Re3
{[%clk 0:00:29.9]} 33. Bf2 {[%clk 0:01:42.6]} 33... Re8 {[%clk 0:00:26.9]} 34.
d5 {[%clk 0:01:42.5]} 34... Qd6 {[%clk 0:00:25.2]} 35. Qa4 {[%clk 0:01:41.9]}
35... Rc8 {[%clk 0:00:20.4]} 36. Kh1 {[%clk 0:01:30.1]} 36... g6 {[%clk
0:00:19.8]} 37. Bd4 {[%clk 0:01:28.7]} 37... Bc5 {[%clk 0:00:19.5]} 38. Qxc4
{[%clk 0:01:28.2]} 38... Rc7 {[%clk 0:00:19.3]} 39. Bxc5 {[%clk 0:01:25.1]}
39... Rxc5 {[%clk 0:00:20.2]} 40. Qd4 {[%clk 0:01:25]} 40... Ra5 {[%clk
0:00:18.6]} 41. Rd2 {[%clk 0:01:23.9]} 41... Rb5 {[%clk 0:00:18.2]} 42. c4
{[%clk 0:01:23.4]} 42... Rb1+ {[%clk 0:00:17.8]} 43. Rd1 {[%clk 0:01:23.6]}
43... Rb4 {[%clk 0:00:17.1]} 44. Qd3 {[%clk 0:01:16.7]} 44... Qc5 {[%clk
0:00:13.2]} 45. d6 {[%clk 0:01:14.9]} 45... Rb8 {[%clk 0:00:13.2]} 46. d7 {[%clk
0:01:14.2]} 46... Rd8 {[%clk 0:00:13.6]} 47. Qd5 {[%clk 0:01:14.4]} 47... Qxd5
{[%clk 0:00:13.1]} 48. Rxd5 {[%clk 0:01:15.3]} 48... Kf8 {[%clk 0:00:13.7]} 49.
c5 {[%clk 0:01:15.7]} 49... Ke7 {[%clk 0:00:14.6]} 50. c6 {[%clk 0:01:16.1]} 1-0

[Event "*** Titled Tuesday Blitz"]
[Site "Chess.com"]
[Date "2020.11.10"]
[Round "1"]
[White "Harry_Rakkel"]
[Black "rugbyclub"]
[Result "1-0"]
[WhiteElo "2563"]
[BlackElo "2229"]
[TimeControl "180+1"]
[EndTime "10:06:43 PST"]
[Termination "Harry_Rakkel won by checkmate"]

1. e4 {[%clk 0:02:58.7]} 1... e6 {[%clk 0:02:57.6]} 2. d3 {[%clk 0:02:57.2]}
2... c5 {[%clk 0:02:56.2]} 3. g3 {[%clk 0:02:53.8]} 3... Nc6 {[%clk 0:02:56.6]}
4. Bg2 {[%clk 0:02:53]} 4... g6 {[%clk 0:02:56.7]} 5. f4 {[%clk 0:02:49.9]} 5...
Bg7 {[%clk 0:02:56.8]} 6. Nf3 {[%clk 0:02:49.5]} 6... Nge7 {[%clk 0:02:51.8]} 7.
O-O {[%clk 0:02:49.1]} 7... d6 {[%clk 0:02:52]} 8. c3 {[%clk 0:02:48]} 8... O-O
{[%clk 0:02:43.1]} 9. Na3 {[%clk 0:02:45.5]} 9... Rb8 {[%clk 0:02:41.8]} 10. Nc2
{[%clk 0:02:40.8]} 10... b6 {[%clk 0:02:34.6]} 11. d4 {[%clk 0:02:39.9]} 11...
Ba6 {[%clk 0:02:33]} 12. Re1 {[%clk 0:02:39.4]} 12... d5 {[%clk 0:02:31.3]} 13.
e5 {[%clk 0:02:34.3]} 13... Bc8 {[%clk 0:02:18.1]} 14. Be3 {[%clk 0:02:30]}
14... c4 {[%clk 0:02:17.4]} 15. g4 {[%clk 0:02:27.9]} 15... b5 {[%clk
0:02:16.4]} 16. a3 {[%clk 0:02:27.5]} 16... a5 {[%clk 0:02:16.3]} 17. Qd2 {[%clk
0:02:23.7]} 17... Bd7 {[%clk 0:02:14.4]} 18. Qf2 {[%clk 0:02:15.7]} 18... Qb6
{[%clk 0:02:13.8]} 19. Bd2 {[%clk 0:02:14.3]} 19... Rfe8 {[%clk 0:02:10.4]} 20.
Kh1 {[%clk 0:02:14]} 20... Bf8 {[%clk 0:02:10.1]} 21. Qh4 {[%clk 0:02:13.3]}
21... Bg7 {[%clk 0:02:03.6]} 22. Re3 {[%clk 0:02:08.7]} 22... Rb7 {[%clk
0:01:59.9]} 23. Rf1 {[%clk 0:02:05.1]} 23... b4 {[%clk 0:01:56.5]} 24. axb4
{[%clk 0:02:03.5]} 24... axb4 {[%clk 0:01:56.5]} 25. cxb4 {[%clk 0:02:03.9]}
25... Na7 {[%clk 0:01:53.7]} 26. Ng5 {[%clk 0:01:54.9]} 26... h6 {[%clk
0:01:51.7]} 27. Rh3 {[%clk 0:01:42.5]} 27... Ba4 {[%clk 0:01:32.3]} 28. f5
{[%clk 0:01:33.2]} 28... gxf5 {[%clk 0:01:26.7]} 29. Nxf7 {[%clk 0:01:32]} 29...
Kxf7 {[%clk 0:01:25.1]} 30. Bxh6 {[%clk 0:01:25.3]} 30... Rh8 {[%clk 0:01:21.1]}
31. Qh5+ {[%clk 0:01:24.8]} 31... Kg8 {[%clk 0:01:14.3]} 32. Qg5 {[%clk
0:01:20.4]} 32... Rh7 {[%clk 0:01:02.1]} 33. gxf5 {[%clk 0:01:14.7]} 33... Nxf5
{[%clk 0:00:58.6]} 34. Rxf5 {[%clk 0:00:55.4]} 34... Bxc2 {[%clk 0:00:58]} 35.
Rf6 {[%clk 0:00:50.5]} 35... Qxd4 {[%clk 0:00:54]} 36. Rf4 {[%clk 0:00:40]}
36... Qxe5 {[%clk 0:00:24.4]} 37. Qd8+ {[%clk 0:00:37.8]} 37... Bf8 {[%clk
0:00:17.1]} 38. Qxf8# {[%clk 0:00:37.3]} 1-0

[Event "*** Titled Tuesday Blitz"]
[Site "Chess.com"]
[Date "2020.11.10"]
[Round "1"]
[White "joppie2"]
[Black "petrkostenko"]
[Result "1-0"]
[WhiteElo "2956"]
[BlackElo "2461"]
[TimeControl "180+1"]
[EndTime "10:06:44 PST"]
[Termination "joppie2 won by resignation"]

1. e4 {[%clk 0:03:00.1]} 1... e6 {[%clk 0:02:58.2]} 2. d4 {[%clk 0:02:57.3]}
2... d5 {[%clk 0:02:57.7]} 3. Nc3 {[%clk 0:02:57.6]} 3... Nf6 {[%clk 0:02:56.8]}
4. Bg5 {[%clk 0:02:57.1]} 4... Bb4 {[%clk 0:02:49.7]} 5. e5 {[%clk 0:02:56.5]}
5... h6 {[%clk 0:02:50.2]} 6. Bd2 {[%clk 0:02:57]} 6... Bxc3 {[%clk 0:02:50.1]}
7. bxc3 {[%clk 0:02:57.9]} 7... Ne4 {[%clk 0:02:50.2]} 8. Bc1 {[%clk 0:02:58.5]}
8... c5 {[%clk 0:02:45.1]} 9. Ne2 {[%clk 0:02:44.8]} 9... cxd4 {[%clk
0:02:20.1]} 10. cxd4 {[%clk 0:02:42.8]} 10... Nc6 {[%clk 0:02:16.2]} 11. f3
{[%clk 0:02:40.8]} 11... Qa5+ {[%clk 0:02:14.7]} 12. c3 {[%clk 0:02:40.2]} 12...
Nxc3 {[%clk 0:02:14.6]} 13. Qd2 {[%clk 0:02:34.6]} 13... Nxe2 {[%clk 0:02:08.3]}
14. Qxa5 {[%clk 0:02:31.6]} 14... Nxa5 {[%clk 0:02:07.6]} 15. Bxe2 {[%clk
0:02:32.5]} 15... Bd7 {[%clk 0:02:03.5]} 16. Bd2 {[%clk 0:02:31.9]} 16... Nc4
{[%clk 0:02:01.5]} 17. Bxc4 {[%clk 0:02:27.4]} 17... dxc4 {[%clk 0:02:00.9]} 18.
Bb4 {[%clk 0:02:28.3]} 18... Bc6 {[%clk 0:02:00.5]} 19. Kd2 {[%clk 0:02:27.8]}
19... Kd7 {[%clk 0:02:00]} 20. Kc3 {[%clk 0:02:28.1]} 20... Rhc8 {[%clk
0:01:56.3]} 21. a4 {[%clk 0:02:26.1]} 21... b6 {[%clk 0:01:53.3]} 22. a5 {[%clk
0:02:25.3]} 22... b5 {[%clk 0:01:50.3]} 23. Bc5 {[%clk 0:02:24.2]} 23... Bd5
{[%clk 0:01:50.1]} 24. a6 {[%clk 0:02:21.3]} 24... Rxc5 {[%clk 0:01:39.2]} 25.
dxc5 {[%clk 0:02:20.5]} 25... Kc6 {[%clk 0:01:39.2]} 26. Kb4 {[%clk 0:02:20.8]}
26... Rf8 {[%clk 0:01:38]} 27. Ra5 {[%clk 0:02:20]} 27... Rb8 {[%clk 0:01:35.7]}
28. Rd1 {[%clk 0:02:19.7]} 28... f6 {[%clk 0:01:35.7]} 29. exf6 {[%clk
0:02:18.7]} 29... gxf6 {[%clk 0:01:35.7]} 30. Rd4 {[%clk 0:02:18.7]} 30... f5
{[%clk 0:01:03.2]} 31. Rh4 {[%clk 0:02:14.5]} 31... Rg8 {[%clk 0:00:55.6]} 32.
g3 {[%clk 0:02:14.6]} 32... c3 {[%clk 0:00:53.7]} 33. Ra3 {[%clk 0:02:10.4]}
33... Bxf3 {[%clk 0:00:50.7]} 34. Rxc3 {[%clk 0:02:08.4]} 34... Bd5 {[%clk
0:00:50.7]} 35. Rd3 {[%clk 0:01:58.2]} 35... Rg6 {[%clk 0:00:49.9]} 36. Rdd4
{[%clk 0:01:58.4]} 36... e5 {[%clk 0:00:49.3]} 37. Rd2 {[%clk 0:01:55.2]} 37...
e4 {[%clk 0:00:42.2]} 38. Rf4 {[%clk 0:01:49.6]} 38... Rg5 {[%clk 0:00:40.7]}
39. Rdf2 {[%clk 0:01:48.4]} 39... Be6 {[%clk 0:00:39.6]} 40. Rf1 {[%clk
0:01:48.8]} 40... h5 {[%clk 0:00:37.7]} 41. R1f2 {[%clk 0:01:48.8]} 41... Bd7
{[%clk 0:00:23.9]} 42. Rd2 {[%clk 0:01:48.3]} 42... Rg6 {[%clk 0:00:23.9]} 43.
Rh4 {[%clk 0:01:46.4]} 43... Rh6 {[%clk 0:00:23.6]} 44. Rf4 {[%clk 0:01:38.9]}
44... Rg6 {[%clk 0:00:22.7]} 45. Rd4 {[%clk 0:01:39.2]} 45... Rh6 {[%clk
0:00:19.5]} 46. Rf1 {[%clk 0:01:39]} 46... Bc8 {[%clk 0:00:18.6]} 47. Rfd1
{[%clk 0:01:39.1]} 47... e3 {[%clk 0:00:18]} 48. Rd6+ {[%clk 0:01:39]} 48...
Rxd6 {[%clk 0:00:16.7]} 49. Rxd6+ {[%clk 0:01:39.9]} 49... Kc7 {[%clk
0:00:16.9]} 50. Rd3 {[%clk 0:01:38.8]} 50... Bxa6 {[%clk 0:00:17.1]} 51. Rxe3
{[%clk 0:01:39.1]} 51... Bc8 {[%clk 0:00:15.9]} 52. Kxb5 {[%clk 0:01:36.3]}
52... Bd7+ {[%clk 0:00:16.5]} 53. Kc4 {[%clk 0:01:36.7]} 53... Kc6 {[%clk
0:00:16.5]} 54. Ra3 {[%clk 0:01:34.1]} 54... Be6+ {[%clk 0:00:15.4]} 55. Kd4
{[%clk 0:01:34.4]} 55... Kb7 {[%clk 0:00:14.4]} 56. Ke5 {[%clk 0:01:34.6]} 56...
Bd7 {[%clk 0:00:14.1]} 57. Kd6 {[%clk 0:01:34.6]} 1-0

[Event "*** Titled Tuesday Blitz"]
[Site "Chess.com"]
[Date "2020.11.10"]
[Round "1"]
[White "jens1102"]
[Black "MarcoRiehle"]
[Result "1-0"]
[WhiteElo "2370"]
[BlackElo "2683"]
[TimeControl "180+1"]
[EndTime "10:06:50 PST"]
[Termination "jens1102 won by resignation"]

1. c4 {[%clk 0:03:00.7]} 1... c5 {[%clk 0:02:57.7]} 2. Nf3 {[%clk 0:02:55.9]}
2... Nf6 {[%clk 0:02:57.8]} 3. Nc3 {[%clk 0:02:54.1]} 3... d5 {[%clk 0:02:57.2]}
4. cxd5 {[%clk 0:02:54]} 4... Nxd5 {[%clk 0:02:58.1]} 5. e4 {[%clk 0:02:54.6]}
5... Nb4 {[%clk 0:02:55.4]} 6. Bc4 {[%clk 0:02:55]} 6... Nd3+ {[%clk 0:02:51.9]}
7. Ke2 {[%clk 0:02:54.5]} 7... Nf4+ {[%clk 0:02:51.4]} 8. Kf1 {[%clk 0:02:53.3]}
8... Be6 {[%clk 0:02:51.3]} 9. Bb5+ {[%clk 0:02:38.8]} 9... Nc6 {[%clk
0:02:50.1]} 10. d4 {[%clk 0:02:38.1]} 10... Nxg2 {[%clk 0:02:32.7]} 11. Kxg2
{[%clk 0:02:31]} 11... cxd4 {[%clk 0:02:31.9]} 12. Nxd4 {[%clk 0:02:26.1]} 12...
Bd7 {[%clk 0:02:31.7]} 13. Nxc6 {[%clk 0:02:25.3]} 13... bxc6 {[%clk 0:02:30.1]}
14. Bc4 {[%clk 0:02:25.1]} 14... Qc7 {[%clk 0:02:23.3]} 15. Qf3 {[%clk
0:02:19.2]} 15... f6 {[%clk 0:02:22.9]} 16. Be3 {[%clk 0:02:01.1]} 16... e6
{[%clk 0:02:15.8]} 17. Rad1 {[%clk 0:01:56.4]} 17... Be7 {[%clk 0:02:13.1]} 18.
Rd2 {[%clk 0:01:55]} 18... O-O {[%clk 0:02:10.2]} 19. Rhd1 {[%clk 0:01:55.1]}
19... Bc8 {[%clk 0:02:10.3]} 20. Bf4 {[%clk 0:01:50.1]} 20... Qa5 {[%clk
0:02:02.5]} 21. Bd6 {[%clk 0:01:42.3]} 21... Bxd6 {[%clk 0:02:00.1]} 22. Rxd6
{[%clk 0:01:43.2]} 22... Rb8 {[%clk 0:01:57.1]} 23. Bb3 {[%clk 0:01:38.5]} 23...
Kh8 {[%clk 0:01:47]} 24. Qe3 {[%clk 0:01:36.7]} 24... Qh5 {[%clk 0:01:30.8]} 25.
Rd8 {[%clk 0:01:27.2]} 25... Ba6 {[%clk 0:01:24.6]} 26. Rxb8 {[%clk 0:01:13.3]}
26... Rxb8 {[%clk 0:01:24.8]} 27. Qf3 {[%clk 0:01:08]} 27... Qf7 {[%clk
0:01:12.8]} 28. Qg3 {[%clk 0:01:02.4]} 28... Re8 {[%clk 0:01:09.3]} 29. Rd6
{[%clk 0:00:59.9]} 29... Bb7 {[%clk 0:01:01.8]} 30. Na4 {[%clk 0:00:55.3]} 30...
c5 {[%clk 0:01:00.3]} 31. Nxc5 {[%clk 0:00:54.2]} 31... Ba8 {[%clk 0:01:00.5]}
32. Rd7 {[%clk 0:00:53.6]} 32... Qf8 {[%clk 0:00:59.1]} 33. Nxe6 {[%clk
0:00:45.6]} 33... Bxe4+ {[%clk 0:00:54.8]} 34. f3 {[%clk 0:00:46.1]} 34... Bxf3+
{[%clk 0:00:54.8]} 35. Qxf3 {[%clk 0:00:44.3]} 35... Qb4 {[%clk 0:00:54.3]} 36.
Nxg7 {[%clk 0:00:35.5]} 36... Qb5 {[%clk 0:00:39.4]} 37. Nxe8 {[%clk 0:00:29.2]}
37... Qg5+ {[%clk 0:00:39.2]} 38. Kf2 {[%clk 0:00:24.3]} 38... Qh4+ {[%clk
0:00:38.7]} 39. Qg3 {[%clk 0:00:23.6]} 39... Qh6 {[%clk 0:00:37.9]} 40. Qg7+
{[%clk 0:00:22.2]} 40... Qxg7 {[%clk 0:00:37.5]} 41. Nxg7 {[%clk 0:00:22]} 41...
h6 {[%clk 0:00:36.5]} 42. Nh5 {[%clk 0:00:20]} 1-0

[Event "*** Titled Tuesday Blitz"]
[Site "Chess.com"]
[Date "2020.11.10"]
[Round "1"]
[White "KetiGrant"]
[Black "Sviridov_Valery"]
[Result "0-1"]
[WhiteElo "2399"]
[BlackElo "2781"]
[TimeControl "180+1"]
[EndTime "10:06:52 PST"]
[Termination "Sviridov_Valery won on time"]

1. e4 {[%clk 0:03:00.1]} 1... g6 {[%clk 0:02:32.1]} 2. d4 {[%clk 0:02:58.8]}
2... Bg7 {[%clk 0:02:30.5]} 3. Nc3 {[%clk 0:02:57.5]} 3... d6 {[%clk 0:02:30.8]}
4. Be3 {[%clk 0:02:56.1]} 4... a6 {[%clk 0:02:30.4]} 5. Qd2 {[%clk 0:02:43.1]}
5... b5 {[%clk 0:02:29.6]} 6. Nf3 {[%clk 0:02:36.5]} 6... Bb7 {[%clk 0:02:29.3]}
7. Bd3 {[%clk 0:02:36.5]} 7... Nd7 {[%clk 0:02:27.9]} 8. O-O {[%clk 0:02:22.1]}
8... c5 {[%clk 0:02:27.1]} 9. d5 {[%clk 0:02:08.7]} 9... Ngf6 {[%clk 0:02:14.1]}
10. a3 {[%clk 0:01:59.1]} 10... O-O {[%clk 0:02:01.6]} 11. Bh6 {[%clk
0:01:54.4]} 11... c4 {[%clk 0:02:01.1]} 12. Be2 {[%clk 0:01:48.4]} 12... Qc7
{[%clk 0:01:54.3]} 13. Bxg7 {[%clk 0:01:47.3]} 13... Kxg7 {[%clk 0:01:55.2]} 14.
Rfe1 {[%clk 0:01:46.5]} 14... Rfe8 {[%clk 0:01:53.4]} 15. Rad1 {[%clk
0:01:45.3]} 15... Nc5 {[%clk 0:01:48.5]} 16. Bf1 {[%clk 0:01:37.9]} 16... Rad8
{[%clk 0:01:48.4]} 17. h3 {[%clk 0:01:32.1]} 17... e6 {[%clk 0:01:48.4]} 18. Qd4
{[%clk 0:01:08.6]} 18... exd5 {[%clk 0:01:36.1]} 19. exd5 {[%clk 0:01:05.9]}
19... Qd7 {[%clk 0:01:27.8]} 20. g4 {[%clk 0:00:58.4]} 20... h6 {[%clk
0:01:25.2]} 21. Bg2 {[%clk 0:00:53.8]} 21... g5 {[%clk 0:00:53]} 22. Nd2 {[%clk
0:00:49.2]} 22... Rxe1+ {[%clk 0:00:51.6]} 23. Rxe1 {[%clk 0:00:48.4]} 23... Re8
{[%clk 0:00:52.5]} 24. Nce4 {[%clk 0:00:18.9]} 24... Nxe4 {[%clk 0:00:47.6]} 25.
Nxe4 {[%clk 0:00:19.8]} 25... Qd8 {[%clk 0:00:41.6]} 26. Kh2 {[%clk 0:00:15.5]}
26... Re5 {[%clk 0:00:33.7]} 27. Re3 {[%clk 0:00:03]} 27... Nxe4 {[%clk
0:00:27.3]} 28. Rxe4 {[%clk 0:00:01.7]} 28... Qf6 {[%clk 0:00:24.8]} 0-1

[Event "*** Titled Tuesday Blitz"]
[Site "Chess.com"]
[Date "2020.11.10"]
[Round "1"]
[White "juancruzarias"]
[Black "ecwinslow"]
[Result "1-0"]
[WhiteElo "2565"]
[BlackElo "2234"]
[TimeControl "180+1"]
[EndTime "10:06:52 PST"]
[Termination "juancruzarias won by resignation"]

1. d4 {[%clk 0:02:59.7]} 1... Nf6 {[%clk 0:02:59.2]} 2. Bg5 {[%clk 0:02:59.7]}
2... c5 {[%clk 0:02:57]} 3. Nc3 {[%clk 0:02:59.6]} 3... cxd4 {[%clk 0:02:55.7]}
4. Qxd4 {[%clk 0:03:00.5]} 4... Nc6 {[%clk 0:02:55.5]} 5. Qh4 {[%clk 0:03:01.1]}
5... e6 {[%clk 0:02:54.4]} 6. e4 {[%clk 0:03:00.5]} 6... d6 {[%clk 0:02:48.9]}
7. O-O-O {[%clk 0:03:00.4]} 7... Be7 {[%clk 0:02:48.5]} 8. f4 {[%clk 0:02:53.4]}
8... Bd7 {[%clk 0:02:41.1]} 9. Nf3 {[%clk 0:02:51.2]} 9... Qa5 {[%clk
0:02:35.3]} 10. Bb5 {[%clk 0:02:30]} 10... a6 {[%clk 0:02:34.3]} 11. Bxc6 {[%clk
0:02:29]} 11... Bxc6 {[%clk 0:02:34.2]} 12. e5 {[%clk 0:02:29]} 12... dxe5
{[%clk 0:02:08.2]} 13. fxe5 {[%clk 0:02:28.6]} 13... Nd5 {[%clk 0:01:46.5]} 14.
Nxd5 {[%clk 0:02:04.4]} 14... Bxg5+ {[%clk 0:01:32.3]} 15. Qxg5 {[%clk
0:02:05.3]} 15... Bxd5 {[%clk 0:01:29.1]} 16. Qxg7 {[%clk 0:02:02.1]} 16...
O-O-O {[%clk 0:01:28]} 17. a3 {[%clk 0:02:01.1]} 17... Rhg8 {[%clk 0:01:23.1]}
18. Qxh7 {[%clk 0:01:40.4]} 18... Rxg2 {[%clk 0:01:22.1]} 19. Qd3 {[%clk
0:01:25.4]} 19... Qc7 {[%clk 0:01:17.1]} 20. Rhf1 {[%clk 0:01:15.9]} 20... Bxf3
{[%clk 0:01:08.4]} 21. Qxd8+ {[%clk 0:01:15.5]} 21... Qxd8 {[%clk 0:01:08.2]}
22. Rxd8+ {[%clk 0:01:16.4]} 22... Kxd8 {[%clk 0:01:08.2]} 23. Rxf3 {[%clk
0:01:17.3]} 23... Rxh2 {[%clk 0:01:06.9]} 24. Rxf7 {[%clk 0:01:16.9]} 24... Re2
{[%clk 0:01:04]} 25. Rxb7 {[%clk 0:01:16.3]} 25... Rxe5 {[%clk 0:01:03]} 26. Ra7
{[%clk 0:01:09.6]} 26... a5 {[%clk 0:00:58.9]} 27. Kd2 {[%clk 0:01:08.3]} 27...
Rd5+ {[%clk 0:00:55.5]} 28. Kc3 {[%clk 0:01:04.2]} 28... e5 {[%clk 0:00:50.7]}
29. Kc4 {[%clk 0:01:03.3]} 29... Rd2 {[%clk 0:00:47.9]} 30. Kb3 {[%clk
0:01:00.3]} 30... Rd5 {[%clk 0:00:47.2]} 31. c4 {[%clk 0:01:00.5]} 31... Rc5
{[%clk 0:00:43.2]} 32. Kc3 {[%clk 0:00:59.6]} 32... Kc8 {[%clk 0:00:42.7]} 33.
b3 {[%clk 0:00:55.5]} 33... Kb8 {[%clk 0:00:40.6]} 34. Re7 {[%clk 0:00:55.2]}
34... Kc8 {[%clk 0:00:35.1]} 35. Kd3 {[%clk 0:00:51.9]} 35... Kd8 {[%clk
0:00:34.8]} 36. Ra7 {[%clk 0:00:51.9]} 36... Kc8 {[%clk 0:00:31]} 37. a4 {[%clk
0:00:41]} 37... Kd8 {[%clk 0:00:26.4]} 38. Ke4 {[%clk 0:00:40.3]} 38... Kc8
{[%clk 0:00:26.1]} 39. Re7 {[%clk 0:00:34.6]} 39... Rc6 {[%clk 0:00:15.6]} 40.
Rxe5 {[%clk 0:00:34.9]} 40... Rb6 {[%clk 0:00:15.4]} 41. Rb5 {[%clk 0:00:35.4]}
1-0